Cogmind - Beta 11 X8 *** ADVENTURER MODE // 2021.11.12 @ 07:53:36 Player: Rogirek Result: Self-destructed Performance ------------- Evolutions (1) 500 Regions Visited (3) 600 Robots Destroyed (38) 190 Value Destroyed (753) 753 Prototype IDs (0) 0 Alien Tech Used (0) 0 Bonus (0) 0 TOTAL SCORE: 2043 Bonus ------- None Cogmind --------- Core Integrity 328/400 Matter 293/300 Energy 160/160 System Corruption 0% Temperature Cool (0) Movement Flying (117) Ox1 Location -9/Materials Parts ------- > --- POWER (1) -------- Light Nuclear Core > --- PROPULSION (3) --- Flight Unit Flight Unit > --- UTILITY (3) ------ Improved Sensor Array ECM Suite > --- WEAPON (2) ------- Light Assault Rifle > --- INVENTORY (5) ---- Light Nuclear Core Flight Unit Light Assault Rifle Grenade Launcher Peak State ------------ > --- POWER ------------ Light Nuclear Core > --- PROPULSION ------- Flight Unit Flight Unit Flight Unit > --- UTILITY ---------- Heat Sink Improved Sensor Array ECM Suite > --- WEAPON ----------- Light Assault Rifle Light Assault Rifle > --- INVENTORY -------- Light Nuclear Core Flight Unit Light Assault Rifle Grenade Launcher [Rating: 13] Favorites ----------- Power Light Ion Engine Engine Light Ion Engine Power Core Light Nuclear Core Propulsion Aluminum Leg Treads Light Treads Leg Aluminum Leg Flight Unit Flight Unit Utility Medium Storage Unit Device Heat Sink Storage Medium Storage Unit Weapon Medium Laser Energy Gun Medium Laser Ballistic Gun Light Assault Rifle Build | -11 -10 -10 -9 ------- Run | Scr Mat Min Mat Slots Evolved 2 | . . . 2 Power . | . . . . Propulsion 1 | . . . 1 Utility 1 | . . . 1 Weapon . | . . . . Parts Attached 29 | 7 5 4 13 Power 7 | 1 1 1 4 Engine 6 | 1 1 1 3 Core 1 | . . . 1 Reactor . | . . . . Propulsion 9 | 2 . 2 5 Treads 2 | . . . 2 Leg 4 | 2 . 2 . Wheel . | . . . . Hover . | . . . . Flight 3 | . . . 3 Utility 7 | 2 2 1 2 Device 4 | 1 . 1 2 Storage 3 | 1 2 . . Processor . | . . . . Hackware . | . . . . Protection . | . . . . Artifact . | . . . . Weapon 6 | 2 2 . 2 Energy Gun 4 | 2 2 . . Energy Cannon . | . . . . Ballistic Gun 2 | . . . 2 Ballistic Cannon . | . . . . Launcher . | . . . . Special Weapon . | . . . . Impact Weapon . | . . . . Slashing Weapon . | . . . . Piercing Weapon . | . . . . Special Melee Weapon . | . . . . Unidentified Prototypes . | . . . . Parts Lost 5 | . 1 1 3 Power 1 | . . 1 . Propulsion 1 | . . . 1 Utility 1 | . . . 1 Weapon 2 | . 1 . 1 Highest Loss Streak 3 | . 1 1 3 Average Slot Usage (%) 97 | . 97 100 95 Engine 11 | . 14 14 7 Core 1 | . . . 3 Treads 4 | . . . 11 Leg 19 | . 28 28 6 Flight 5 | . . . 13 Device 17 | . 14 14 22 Storage 11 | . 14 14 6 Energy Gun 21 | . 25 28 13 Ballistic Gun 3 | . . . 8 Naked Turns . | . . . . Heaviest Build 28 | 13 28 20 22 Greatest Support 40 | 20 20 20 40 Greatest Overweight (x) 5 | 3 1 . 5 Average Overweight (x) . | . . . . Largest Inventory Capacity 15 | 8 15 10 10 Average Capacity 8 | 7 9 10 7 Most Carried 10 | 6 10 10 10 Average Carried 8 | 4 8 9 7 Final Capacity 10 | 8 10 10 5 Final Carried 10 | 6 10 10 4 Class Distribution -------------------- 84% | Mutant 15% | Scavenger-Mutant Dominant Class ---------------- Mutant | -10/Materials Mutant | -10/Mines Mutant | -9/Materials Resources | -11 -10 -10 -9 ----------- Run | Scr Mat Min Mat Matter Collected 496 | 270 35 45 146 Remotely . | . . . . Salvage Created 1108 | 173 262 214 459 Parts 80 | 11 30 7 32 Haulers Intercepted . | . . . . Recyclers Shooed 3 | . 1 1 1 Parts Field Recycled . | . . . . Retrieved Matter . | . . . . Parts Self-Destructed . | . . . . Prevented . | . . . . Kills | -11 -10 -10 -9 ------- Run | Scr Mat Min Mat Combat Hostiles Destroyed 32 | . 12 7 13 Guns 29 | . 11 5 13 AOE 1 | . 1 . . Classes Destroyed 8 | 3 3 . 2 Worker 2 | 2 . . . Builder 1 | . 1 . . Tunneler 1 | 1 . . . Recycler 1 | 1 . . . Watcher 1 | . . . 1 Swarmer 18 | . 9 3 6 Grunt 12 | . 3 4 5 Sentry 2 | . . . 2 Best Kill Streak 7 | 4 4 3 7 Combat Bots Only 7 | . 3 3 7 Max Kills in Single Turn 2 | 1 2 1 2 Gunslinging 1 | . . . 1 Exploded 1 | . 1 . . Melee . | . . . . Uniques/NPCs Destroyed . | . . . . Combat | -11 -10 -10 -9 -------- Run | Scr Mat Min Mat Damage Taken 822 | . 172 228 422 Core 124 | . 23 29 72 Absorbed by Shields . | . . . . Core Remaining (%) 89 | 100 . 79 . Volleys Fired 81 | 8 24 17 32 Largest 2 | 2 2 2 2 Hottest 100 | 90 100 100 100 Shots Fired 157 | 16 45 34 62 Gun 157 | 16 45 34 62 Cannon . | . . . . Launcher . | . . . . Special . | . . . . Kinetic 38 | . . . 38 Thermal 99 | 8 33 34 24 Explosive . | . . . . Electromagnetic 20 | 8 12 . . Robot Hit Streak 23 | 13 16 12 23 Robot Miss Streak 4 | 1 4 1 1 Penetration Max . | . . . . Secondary Targets 5 | . . 1 4 Max Gunslinging Chain 1 | . . 1 1 Shots Hit Robots 127 | 13 28 30 56 Core Hits 57 | 5 15 11 26 Critical Kills . | . . . . Critical Parts Destroyed . | . . . . Critical Strikes 8 | . 2 4 2 Burn 8 | . 2 4 2 Melee Attacks . | . . . . Impact . | . . . . Slashing . | . . . . Piercing . | . . . . Sneak Attacks . | . . . . Combat Hostiles . | . . . . Follow-up Attacks . | . . . . Damage Inflicted 1555 | 175 466 373 541 Guns 1478 | 152 412 373 541 Cannons . | . . . . Explosions 77 | 23 54 . . Melee . | . . . . Ramming . | . . . . Kinetic 281 | . . . 281 Thermal 1052 | 86 333 373 260 Explosive . | . . . . Electromagnetic 222 | 89 133 . . Impact . | . . . . Slashing . | . . . . Piercing . | . . . . Highest Corruption . | . . . . Average Corruption . | . . . . Corruption Purged . | . . . . Overload Shots . | . . . . Overflow Damage 2 | . 2 . . Projectiles . | . . . . Explosions 2 | . 2 . . Melee . | . . . . Knockbacks . | . . . . Impact . | . . . . Kinetic . | . . . . Secondary . | . . . . Self-Inflicted Damage 20 | . 20 . . Shots 1 | . 1 . . Rammed . | . . . . Targets Rammed . | . . . . Kicked . | . . . . Crushed . | . . . . Highest Temperature 327 | 120 220 327 10 Average Temperature 78 | 52 77 106 6 Received Heat Transfer 369 | . 42 135 192 Effects 1 | . 1 . . Energy Bleed 1 | . 1 . . Siege Activations . | . . . . Robots Corrupted . | . . . . Combat Hostiles . | . . . . Parts Fried . | . . . . Impact Corruptions . | . . . . Robots Melted 2 | . . 2 . Combat Hostiles 2 | . . 2 . Parts Melted 10 | . 4 3 3 Heat Transferred 3628 | 235 1062 1406 925 Parts Sabotaged . | . . . . Parts Stolen . | . . . . Parts Stripped . | . . . . Power Chain Reactions 2 | 1 1 . . Missiles Intercepted . | . . . . Alert | -11 -10 -10 -9 ------- Run | Scr Mat Min Mat Peak Influence 418 | 20 418 273 270 Initial 106 | . 11 106 24 Average 169 | 3 256 181 102 Maximum Alert Level 2 | . 2 1 1 Low Security (%) 59 | 100 16 83 81 Level 1 38 | . 79 16 18 Level 2 1 | . 3 . . Level 3 . | . . . . Level 4 . | . . . . Level 5 . | . . . . High Security . | . . . . Max Security . | . . . . Squads Dispatched 4 | . 1 . 3 Investigation 2 | . 1 . 1 Extermination . | . . . . Reinforcement 2 | . . . 2 Assault . | . . . . Garrison . | . . . . Intercept . | . . . . Construction Impeded . | . . . . Haulers Reinforced . | . . . . Active Scanning Responses . | . . . . Cargo Convoy Interrupts . | . . . . Stealth | -11 -10 -10 -9 --------- Run | Scr Mat Min Mat Distress Signals 6 | . 3 . 3 Communications Jammed . | . . . . Distress Signals . | . . . . Times Spotted 53 | . 24 7 22 Peak Tracking Total 8 | . 5 3 8 Tactical Retreats 5 | . 2 . 3 Traps | -11 -10 -10 -9 ------- Run | Scr Mat Min Mat Traps Triggered 1 | . 1 . . Indirectly . | . . . . Trap Hack Attempts . | . . . . Triggered . | . . . . Disarmed . | . . . . Reprogrammed . | . . . . Reused . | . . . . Traps Extracted . | . . . . Installed . | . . . . Triggered . | . . . . Machines | -11 -10 -10 -9 ---------- Run | Scr Mat Min Mat Machines Disabled . | . . . . Max in Single Turn . | . . . . Machines Sabotaged . | . . . . Garrisons Compromised . | . . . . Overloaded Fab Kills . | . . . . Hacking | -11 -10 -10 -9 --------- Run | Scr Mat Min Mat Machines Accessed 9 | . 6 2 1 Terminals 8 | . 5 2 1 Fabricators . | . . . . Repair Stations 1 | . 1 . . Recycling Units . | . . . . Scanalyzers . | . . . . Garrison Access . | . . . . Total Hacks 27 | . 18 6 3 Successful 14 | . 12 1 1 Failed 13 | . 6 5 2 Catastrophic 3 | . 2 1 . Database Lockouts . | . . . . Manual 19 | . 10 6 3 Terminals 25 | . 16 6 3 Fabricators . | . . . . Repair Stations 2 | . 2 . . Recycling Units . | . . . . Scanalyzers . | . . . . Garrison Access . | . . . . Terminal Hacks 7 | . 6 1 . Record 3 | . 3 . . Branch Access Points 2 | . 1 1 . Terminal Index 1 | . 1 . . Alert Level 1 | . 1 . . Fabricator Hacks . | . . . . Repair Station Hacks 2 | . 2 . . Scan Component 1 | . 1 . . Repair 1 | . 1 . . Recycling Unit Hacks . | . . . . Scanalyzer . | . . . . Garrison Access Hacks . | . . . . Unauthorized Hacks 5 | . 4 . 1 Terminals 5 | . 4 . 1 Botnet 5 | . 4 . 1 Fabricators . | . . . . Repair Stations . | . . . . Recycling Units . | . . . . Scanalyzers . | . . . . Garrison Access . | . . . . Data Cores Recovered . | . . . . Used . | . . . . Hacking Detections 8 | . 5 2 1 Full Trace Events 3 | . 1 1 1 Feedback Events . | . . . . Feedback Blocked . | . . . . Robot Schematics Acquired . | . . . . Robots Built . | . . . . Authchips . | . . . . Time . | . . . . Total Robot Build Rating . | . . . . Part Schematics Acquired . | . . . . Parts Built . | . . . . Authchips . | . . . . Time . | . . . . Total Part Build Rating . | . . . . Parts Repaired 1 | . 1 . . Time 26 | . 26 . . Parts Recycled . | . . . . Recycled Matter . | . . . . Retrieved Matter . | . . . . Retrieved Components . | . . . . Parts Scanalyzed . | . . . . Part Schematics Acquired . | . . . . Parts Damaged . | . . . . Bothacking | -11 -10 -10 -9 ------------ Run | Scr Mat Min Mat Used RIF Installer . | . . . . Robots Hacked . | . . . . Non-combat . | . . . . Combat . | . . . . Robot Hacks Applied . | . . . . Relay Couplers Released . | . . . . Fabnet Peak Effective % . | . . . . Robots Rewired . | . . . . Allies Hacked . | . . . . Hacks Repelled . | . . . . Allies | -11 -10 -10 -9 -------- Run | Scr Mat Min Mat Total Allies . | . . . . Largest Group . | . . . . Highest-Rated Group . | . . . . Highest-Rated Ally . | . . . . Total Orders . | . . . . Ally Attacks . | . . . . Total Damage . | . . . . Kills . | . . . . Allies Corrupted . | . . . . Allies Melted . | . . . . Intel | -11 -10 -10 -9 ------- Run | Scr Mat Min Mat Robot Analysis Total . | . . . . Derelict Logs Recovered 1 | . . 1 . Drone Launches . | . . . . Drone Recoveries . | . . . . Exploration | -11 -10 -10 -9 ------------- Run | Scr Mat Min Mat Turns Passed 1776 | 110 636 402 628 Spaces Moved 1003 | 53 432 276 242 Core 25 | 25 . . . Treads 104 | . . . 104 Legs 758 | 28 432 276 22 Wheels . | . . . . Hover . | . . . . Flight 116 | . . . 116 Fastest Speed 34 | 50 120 120 34 Average Speed 115 | 133 120 120 99 Slowest Speed 460 | 200 190 120 460 Overloaded Moves . | . . . . Propulsion Burnouts . | . . . . Robots Hopped . | . . . . Cave-ins Triggered . | . . . . Exploration Rate (%) 38 | 6 73 57 18 Regions Visited 3 Branch Regions 1 Pre-discovered Areas . | . . . . Known Exits Taken 1 | . 1 . . Unknown Exits Taken 2 | 1 . 1 . Scrap Searched . | . . . . Spaces Dug . | . . . . Terrain Destroyed 6 | 4 2 . . Melee . | . . . . Projectile . | . . . . AOE 6 | 4 2 . . Terrain Rammed . | . . . . Walls Destroyed . | . . . . Machines Disabled . | . . . . Actions | -11 -10 -10 -9 --------- Run | Scr Mat Min Mat Total 1468 | 73 503 314 578 Wait 314 | . 35 13 266 Move 1000 | 52 431 275 242 Hop . | . . . . Pick Up 22 | 6 5 2 9 Fast Attach 16 | 7 2 . 7 Attach 3 | . . 1 2 Detach . | . . . . Swap 10 | . 3 3 4 Drop 22 | . 3 3 16 Fire 81 | 8 24 17 32 Melee . | . . . . Ram . | . . . . Kick . | . . . . Crush . | . . . . Escape Stasis . | . . . . Rewire . | . . . . Trap . | . . . . Miscellaneous . | . . . . Route ------- -11/Scrapyard -10/Materials (discovered 3 exits: *Mat x2 / *Min) -10/Mines (discovered 2 exits: *Mat x2) -9/Materials (discovered 1 exit: Min) History --------- Turn | Location | Event 18 | -11/Scrapyard | Discovered new exit (range 15) 111 | -11/Scrapyard | Entered Materials 191 | -10/Materials | Discovered new exit (range 14) 312 | -10/Materials | Build established: Mutant 360 | -10/Materials | Discovered new exit (range 15) 504 | -10/Materials | Identified exit to Mines 556 | -10/Materials | Repaired Med. Laser 641 | -10/Materials | Discovered new exit (range 8) 747 | -10/Materials | Entered Mines 821 | -10/Mines | Met a Derelict bent on vengeance 922 | -10/Mines | Discovered new exit (range 8) 1077 | -10/Mines | Discovered new exit (range 4) 1149 | -10/Mines | Entered Materials 1149 | -9/Materials | Evolved 2 slots: Propulsion x1, Utility x1 1150 | -9/Materials | Identified exit to Mines 1503 | -9/Materials | Destroyed 7 combat bots 1777 | -9/Materials | Self-destructed Last Messages --------------- 01563_ Acquired Lgt. Nuclear Core. 01565_ Dropped Lgt. Ion Engine. 01565_ W-16 Scout distress signal alerts nearby ally. 01566_ Acquired Lgt. Nuclear Core. 01700_ W-16 Scout distress signal alerts nearby ally. 01708_ O-16 Technician: "IFF HANDSHAKE FAILED. SECURING TERMINAL." 01708_ O-16 Technician uses terminal to summon reinforcements. 01708_ ALERT: Hostiles spotted, dispatching reinforcements to Terminal M010. 01708_ O-16 Technician locks terminal. 01731_ Hadron Collector disabled. 01734_ Critical hit (Burn: +37). 01735_ Y-45 Defender destroyed. 01745_ G-34 Mercenary destroyed. 01748_ Acquired 60 matter. 01748_ G-34 Mercenary destroyed. 01761_ Flight Unit destroyed. 01771_ Lgt. Assault Rifle destroyed. 01773_ Heat Sink destroyed. 01775_ G-47 Trooper destroyed. Map ----- +----------------------------------------------------+ | ???????????????????????????????? | | ???????????????????????????????? | | ???????????????????????????????? | | ???????????????????????????????? | | ???????????????????????????????? | | ???????????????????????????????? | | ???????????????????????????????? | | ???????????????????????????????? | | ???????????????????????????????? | | ???????????????????????????????? | | ???????????????????????????????? | | ????########???????????????????? | | ????#* !!!!#???????????????????? | | ????#**!! !#???????????????????? | | ????# * ! #???????????????????? | | ##### ###############???????? | | ## """"" #???????? | | # ##### / """"" #???????? | | #+##### ## """"" #???????? | | %% *[## ## #???????? | | [%[## ## #???????? | | """ # ##+###########???????? | | %"""*+ #?????????????? | | ="""=# #?????????????? | | """[# ]##### #????########?? | | ## ##???# #????#[%@%%=T # | | ## #????# ######*"="[! # | | ##+#### #????# ? #[""%*]] # | | ?? ?? #????# #="""[]] # | | ?? ? #??#####+## +!""" ]! # | | ?? ######??# # # # | | ??? ????????# # # # | | ????????????# """ #### o # | | ????????????# "R #??# # | | ????????????# """ #??#### ##### | | ????????????# #??????##???? | | ????????????########???????????? | | ???????????????????????????????? | | ???????????????????????????????? | | ???????????????????????????????? | | ???????????????????????????????? | | ???????????????????????????????? | | ???????????????????????????????? | | ???????????????????????????????? | | ???????????????????????????????? | | ???????????????????????????????? | | ???????????????????????????????? | | | | | | | +----------------------------------------------------+ Best States ------------- Heat Dissipation 38 Energy Generation 14 Energy Capacity 250 Matter Stores 300 Matter Capacity 300 Sight Range 16 Robot Scan Range 15 Terrain Scan Range 16 Terrain Scan Density 10 ECM Strength 1 Resistance: KI 20 Resistance: TH 20 Resistance: EX 20 Resistance: EM 20 Resistance: I 20 Resistance: S 20 Resistance: P 20 Evasion (%) 63 Recoil Reduction 2 Offensive Hacking 10 Item Schematics ----------------- None Robot Schematics ------------------ None Fabricated ------------ Nothing Alien Tech Used ----------------- None Achievements -------------- None Challenges ------------ None Game ------ Seed DeliveryMeleeRailgun Manual? 0 Play Time 00:27:56 Cumulative 42.4 hours Start 2021.11.12 @ 07:26:58 End 2021.11.12 @ 07:53:36 Sessions 1 Manual Loads 0 Difficulty Adventurer Special Mode None Game No. 23 Rogue 7 Adventurer 16 Explorer 0 Win Type - Total 1 Types 1/0/0/0/0/0/0/0/0 Lore% 28 Gallery% 40 Achievement% 33 Wizard Run 0 Options --------- ASCII 0 Keyboard 0 Movement Mouse Keybinds 0 Fullscreen 1 Font 24/Smallcaps Map View 76x50 Tactical HUD 1 Map Filters NONE Filters NONE Steam 1 RUN: a2ff7c9c-19a7-47bc-9be2-2bec9c1cc3c9